fUSD/lending_fUSD_20250208
["ID","MTS","AMOUNT","RATE_DAILY","PERIOD"]
[352301884,1739032254830,-500.0,0.00010678,2]
[352301885,1739032254840,-681.91,0.00010678,2]
[352301886,1739032254850,-581.33,0.00010678,2]
[352301887,1739032254859,-500.0,0.00010678,2]
[352301888,1739032254868,-647.0,0.00010678,2]
[352301889,1739032254880,-710.56,0.00010678,2]
[352301890,1739032254890,-500.0,0.00010678,2]
[352301891,1739032254899,-609.7,0.00010678,2]
[352301892,1739032254909,-500.0,0.00010678,2]
[352301893,1739032254918,-500.0,0.00010678,2]
[352301894,1739032254927,-605.68,0.00010678,2]
[352301895,1739032254937,-549.2,0.00010678,2]
[352301896,1739032254946,-534.47615633,0.00010678,2]
[352301897,1739032254955,-738.52,0.00010678,2]
[352301898,1739032254965,-551.76,0.00010678,2]
[352301899,1739032254974,-500.0,0.00010678,2]
[352301900,1739032254984,-696.01,0.00010678,2]
[352301901,1739032254993,-500.0,0.00010678,2]
[352301902,1739032255002,-626.77,0.00010678,2]
[352301903,1739032255012,-500.0,0.00010678,2]
[352301904,1739032255021,-741.56,0.00010678,2]
[352301905,1739032255030,-500.0,0.00010678,2]
[352301906,1739032255040,-1599.9,0.00010678,2]
[352301907,1739032255049,-500.0,0.00010678,2]
[352301908,1739032255059,-699.1,0.00010678,2]
[352301909,1739032255068,-805.06,0.00010678,2]
[352301910,1739032255077,-500.0,0.00010678,2]
[352301911,1739032255086,-1718.5,0.00010678,2]
[352301912,1739032255095,-967.14,0.00010678,2]
[352301913,1739032255104,-1023.4,0.00010678,2]
[352301914,1739032255114,-1657.33,0.00010678,2]
[352301915,1739032255124,-539.04,0.00010678,2]
[352301916,1739032255133,-500.0,0.00010678,2]
[352301917,1739032255142,-712.21,0.00010678,2]
[352301918,1739032255151,-1320.76,0.00010678,2]
[352301919,1739032255160,-1905.97,0.00010678,2]
[352301920,1739032255169,-1224.71,0.00010678,2]
[352301921,1739032255179,-500.0,0.00010678,2]
[352301922,1739032255189,-500.0,0.00010678,2]
[352301923,1739032255198,-606.89,0.00010678,2]
[352301924,1739032255208,-500.0,0.00010678,2]
[352301925,1739032255217,-1330.25,0.00010678,2]
[352301926,1739032255227,-500.0,0.00010678,2]
[352301927,1739032255237,-689.46,0.00010678,2]
[352301928,1739032255246,-839.2,0.00010678,2]
[352301929,1739032255255,-500.0,0.00010678,2]
[352301930,1739032255264,-1766.35,0.00010678,2]
[352301931,1739032255274,-500.0,0.00010678,2]
[352301932,1739032255282,-1494.3,0.00010678,2]
[352301933,1739032255292,-500.0,0.00010678,2]
[352301934,1739032255301,-876.23,0.00010678,2]
[352301935,1739032255311,-554.07,0.00010678,2]
[352301936,1739032255321,-879.59,0.00010678,2]
[352301937,1739032255330,-500.0,0.00010678,2]
[352301938,1739032255339,-749.63,0.00010678,2]
[352301939,1739032255349,-1094.24,0.00010678,2]
[352301940,1739032255357,-546.23,0.00010678,2]
[352301941,1739032255367,-500.0,0.00010678,2]
[352301942,1739032255376,-547.94,0.00010678,2]
[352301943,1739032255386,-1048.86,0.00010678,2]
[352301944,1739032255395,-566.32,0.00010678,2]
[352301945,1739032255404,-3282.61680126,0.00010678,2]
[352301946,1739032256613,-500.0,0.00010402,2]
[352301947,1739032256623,-479.3602106,0.00010402,2]
[352301948,1739032256684,-20.6397894,0.00010402,2]
[352301949,1739032256695,-500.0,0.00010402,2]
[352301950,1739032256704,-500.0,0.00010403,2]
[352301951,1739032256714,-500.0,0.00010403,2]
[352301952,1739032256724,-500.30013549,0.00010404,2]
[352301953,1739032256734,-500.0,0.00010404,2]
[352301954,1739032256744,-500.0,0.00010414,2]
[352301955,1739032256753,-500.0,0.00010539,2]
[352301956,1739032256764,-500.0,0.00010539,2]
[352301957,1739032256774,-500.0,0.00010539,2]
[352301958,1739032256784,-500.0,0.0001054,2]
[352301959,1739032256793,-500.0,0.00010541,2]
[352301960,1739032256808,-500.0,0.00010676,2]
[352301961,1739032256818,-500.0,0.00010676,2]
[352301962,1739032256828,-500.0,0.00010676,2]
[352301963,1739032256839,-500.0,0.00010676,2]
[352301964,1739032256849,-500.0,0.00010677,2]
[352301965,1739032256859,-1605.71319874,0.00010678,2]
[352301966,1739032256869,-605.63,0.00010678,2]
[352301967,1739032256881,-847.0,0.00010678,2]
[352301968,1739032256891,-1004.92,0.00010678,2]
[352301969,1739032256902,-500.0,0.00010678,2]
[352301970,1739032256911,-500.0,0.00010678,2]
[352301971,1739032256921,-1493.5,0.00010678,2]
[352301972,1739032256931,-1003.45,0.00010678,2]
[352301973,1739032256941,-582.38,0.00010678,2]
[352301974,1739032256951,-1091.72,0.00010678,2]
[352301975,1739032256961,-500.0,0.00010678,2]
[352301976,1739032256972,-60.46613637,0.00010678,2]
[352301977,1739032257668,-395.49803451,0.00010403,2]
[352301978,1739032257682,-104.50196549,0.00010403,2]
[352301979,1739032257692,-500.0,0.00010404,2]
[352301980,1739032257701,-353.8381204,0.00010404,2]
[352301981,1739032257713,-146.1618796,0.00010404,2]
[352301982,1739032257724,-500.0,0.00010414,2]
[352301983,1739032257734,-500.0,0.0001054,2]
[352301984,1739032257744,-500.0,0.00010551,2]
[352301985,1739032257756,-934.83386363,0.00010678,2]
[352301986,1739032257765,-10.83922877,0.00010678,2]
[352301987,1739032257825,-500.0,0.00010402,2]
[352301988,1739032257835,-556.57,0.00010541,2]
[352301989,1739032257845,-500.0,0.00010541,2]
[352301990,1739032257854,-500.0,0.00010677,2]
[352301991,1739032257864,-489.16077123,0.00010678,2]
[352301992,1739032257873,-500.0,0.0001068,2]
[352301993,1739032257882,-500.0,0.0001068,2]
[352301994,1739032257893,-500.0,0.0001068,2]
[352301995,1739032257902,-500.0,0.0001068,2]
[352301996,1739032257912,-500.0,0.0001068,2]
[352301997,1739032257922,-500.0,0.0001068,2]
[352301998,1739032257931,-500.0,0.0001068,2]
[352301999,1739032257941,-500.0,0.0001068,2]
[352302000,1739032257950,-639.7,0.0001068,2]
[352302001,1739032257959,-500.0,0.0001068,2]
[352302002,1739032257969,-500.0,0.0001068,2]
[352302003,1739032257978,-500.0,0.0001068,2]
[352302004,1739032257987,-646.39,0.0001068,2]
[352302005,1739032257997,-500.0,0.0001068,2]
[352302006,1739032258006,-500.0,0.0001068,2]
[352302007,1739032258014,-500.0,0.0001068,2]
[352302008,1739032258024,-500.0,0.0001068,2]
[352302009,1739032258033,-500.0,0.00010681,2]
[352302010,1739032258042,-500.0,0.00010688,2]
[352302011,1739032258051,-500.0,0.00010688,2]
[352302012,1739032258061,-500.0,0.00010688,2]
[352302013,1739032258071,-500.0,0.00010688,2]
[352302014,1739032258080,-240.67937746,0.00010688,2]
[352302015,1739032258090,-500.0,0.00010688,2]
[352302016,1739032258100,-500.0,0.00010688,2]
[352302017,1739032258111,-500.0,0.00010688,2]
[352302018,1739032258120,-500.0,0.00010688,2]
[352302019,1739032258130,-532.99,0.00010688,2]
[352302020,1739032258139,-637.2,0.00010688,2]
[352302021,1739032258148,-500.0,0.00010688,2]
[352302022,1739032258157,-500.0,0.00010688,2]
[352302023,1739032258166,-500.0,0.00010688,2]
[352302024,1739032258175,-500.0,0.00010688,2]
[352302025,1739032258184,-500.0,0.00010688,2]
[352302026,1739032258194,-500.0,0.00010688,2]
[352302027,1739032258203,-500.0,0.00010688,2]
[352302028,1739032258212,-500.0,0.00010688,2]
[352302029,1739032258221,-500.0,0.00010688,2]
[352302030,1739032258230,-500.0,0.00010688,2]
[352302031,1739032258239,-500.0,0.00010688,2]
[352302032,1739032258248,-500.0,0.00010688,2]
[352302033,1739032258257,-500.0,0.00010688,2]
[352302034,1739032258266,-500.0,0.00010688,2]
[352302035,1739032258277,-500.0,0.00010688,2]
[352302036,1739032258286,-500.0,0.00010688,2]
[352302037,1739032258295,-500.0,0.00010688,2]
[352302038,1739032258304,-500.0,0.00010688,2]
[352302039,1739032258314,-500.0,0.00010688,2]
[352302040,1739032258324,-500.0,0.00010688,2]
[352302041,1739032258334,-500.0,0.00010688,2]
[352302042,1739032258343,-500.0,0.00010688,2]
[352302043,1739032258352,-500.0,0.00010688,2]
[352302044,1739032258363,-500.0,0.00010688,2]
[352302045,1739032258373,-500.0,0.00010688,2]
[352302046,1739032258382,-500.0,0.00010688,2]
[352302047,1739032258391,-720.42,0.00010688,2]
[352302048,1739032258400,-500.0,0.00010688,2]
[352302049,1739032258410,-500.0,0.00010688,2]
[352302050,1739032258419,-151.57,0.00010688,2]
[352302051,1739032258429,-500.0,0.00010688,2]
[352302052,1739032258438,-500.0,0.00010688,2]
[352302053,1739032258448,-272.19433629,0.00010688,2]
[352302054,1739032258457,-500.0,0.00010688,2]
[352302055,1739032258466,-500.0,0.00010688,2]
[352302056,1739032258475,-568.72,0.00010688,2]
[352302057,1739032258484,-500.0,0.00010688,2]
[352302058,1739032258494,-500.0,0.00010688,2]
[352302059,1739032258503,-644.12,0.00010688,2]
[352302060,1739032258512,-500.0,0.00010688,2]
[352302061,1739032258521,-500.0,0.00010688,2]
[352302062,1739032258530,-500.0,0.00010688,2]
[352302063,1739032258539,-558.91318624,0.00010688,2]
[352302064,1739032258549,-500.0,0.00010688,2]
[352302065,1739032258560,-500.0,0.00010688,2]
[352302066,1739032258569,-501.48,0.00010688,2]
[352302067,1739032258578,-296.58413976,0.00010688,2]
[352302068,1739032258587,-500.0,0.00010688,2]
[352302069,1739032258598,-500.0,0.00010688,2]
[352302070,1739032258607,-209.34602915,0.00010688,2]
[352302071,1739032258617,-500.0,0.00010688,2]
[352302072,1739032258627,-292.64427279,0.00010688,2]
[352302073,1739032258636,-500.0,0.00010688,2]
[352302074,1739032258646,-179.64489315,0.00010688,2]
[352302075,1739032258655,-500.0,0.00010688,2]
[352302076,1739032258664,-500.0,0.00010688,2]
[352302077,1739032258675,-500.0,0.00010688,2]
[352302078,1739032258684,-500.0,0.00010688,2]
[352302079,1739032258694,-500.0,0.00010688,2]
[352302080,1739032258703,-500.0,0.00010688,2]
[352302081,1739032258713,-500.0,0.00010688,2]
[352302082,1739032258723,-235.7,0.00010688,2]
[352302083,1739032258733,-500.0,0.00010688,2]
[352302084,1739032258743,-500.0,0.00010688,2]
[352302085,1739032258754,-500.0,0.00010688,2]
[352302086,1739032258763,-500.0,0.00010688,2]
[352302087,1739032258773,-500.0,0.00010688,2]
[352302088,1739032258783,-500.0,0.00010688,2]
[352302089,1739032258794,-500.0,0.00010688,2]
[352302090,1739032258808,-500.0,0.00010688,2]
[352302091,1739032258818,-500.0,0.00010688,2]
[352302092,1739032258827,-500.0,0.00010688,2]
[352302093,1739032258837,-500.0,0.00010688,2]
[352302094,1739032258847,-500.0,0.00010688,2]
[352302095,1739032258858,-260.07042158,0.00010688,2]
[352302096,1739032258868,-500.0,0.00010688,2]
[352302097,1739032258880,-557.96441779,0.00010688,2]
[352302098,1739032258889,-500.0,0.00010688,2]
[352302099,1739032258899,-500.0,0.00010688,2]
[352302100,1739032258908,-500.0,0.00010688,2]
[352302101,1739032258918,-500.0,0.00010688,2]
[352302102,1739032258929,-500.0,0.00010688,2]
[352302103,1739032258939,-508.94058783,0.00010688,2]
[352302104,1739032258948,-500.0,0.00010688,2]
[352302105,1739032258958,-500.0,0.00010688,2]
[352302106,1739032258967,-500.0,0.00010688,2]
[352302107,1739032258976,-500.0,0.00010688,2]
[352302108,1739032258986,-500.0,0.00010688,2]
[352302109,1739032258995,-500.0,0.00010688,2]
[352302110,1739032259004,-500.0,0.00010688,2]
[352302111,1739032259014,-500.0,0.00010688,2]
[352302112,1739032259023,-500.0,0.00010688,2]
[352302113,1739032259032,-500.0,0.00010688,2]
[352302114,1739032259042,-500.0,0.00010688,2]
[352302115,1739032259051,-500.0,0.00010688,2]
[352302116,1739032259060,-500.0,0.00010688,2]
[352302117,1739032259069,-514.50694143,0.00010688,2]
[352302118,1739032259079,-500.0,0.00010688,2]
[352302119,1739032259088,-500.0,0.00010688,2]
[352302120,1739032259098,-500.0,0.00010688,2]
[352302121,1739032259108,-962.87,0.00010688,2]
[352302122,1739032259118,-2239.32,0.00010688,2]
[352302123,1739032259127,-500.0,0.00010688,2]
[352302124,1739032259137,-4315.07,0.00010688,2]
[352302125,1739032259146,-667.09,0.00010688,2]
[352302126,1739032259155,-828.7,0.00010688,2]
[352302127,1739032259164,-500.0,0.00010688,2]
[352302128,1739032259173,-500.0,0.00010688,2]
[352302129,1739032259183,-500.0,0.00010688,2]
[352302130,1739032259192,-862.2,0.00010688,2]
[352302131,1739032259201,-611.04897106,0.00010688,2]
[352302132,1739032259211,-500.0,0.00010688,2]
[352302133,1739032259220,-625.97,0.00010688,2]
[352302134,1739032259230,-500.0,0.00010688,2]
[352302135,1739032259239,-1376.58,0.00010688,2]
[352302136,1739032259248,-500.0,0.00010688,2]
[352302137,1739032259258,-500.0,0.00010688,2]
[352302138,1739032259267,-500.0,0.00010688,2]
[352302139,1739032259276,-500.0,0.00010688,2]
[352302140,1739032259286,-500.0,0.00010688,2]
[352302141,1739032259295,-966.2,0.00010688,2]
[352302142,1739032259305,-500.0,0.00010688,2]
[352302143,1739032259314,-500.0,0.00010688,2]
[352302144,1739032259324,-1175.2,0.00010688,2]
[352302145,1739032259333,-500.0,0.00010688,2]
[352302146,1739032259342,-500.0,0.00010688,2]
[352302147,1739032259351,-1000.0,0.00010688,2]
[352302148,1739032259361,-805.36,0.00010688,2]
[352302149,1739032259371,-500.0,0.00010688,2]
[352302150,1739032259380,-500.0,0.00010688,2]
[352302151,1739032259390,-528.58,0.00010688,2]
[352302152,1739032259399,-1305.9,0.00010688,2]
[352302153,1739032259409,-500.0,0.00010688,2]
[352302154,1739032259418,-500.0,0.00010688,2]
[352302155,1739032259428,-500.0,0.00010688,2]
[352302156,1739032259438,-1259.69,0.00010688,2]
[352302157,1739032259448,-500.0,0.00010688,2]
[352302158,1739032259458,-310.09096115,0.00010688,2]
[352302159,1739032259467,-500.0,0.00010688,2]
[352302160,1739032259476,-500.0,0.00010688,2]
[352302161,1739032259486,-500.0,0.00010688,2]
[352302162,1739032259495,-500.0,0.00010688,2]
[352302163,1739032259504,-500.0,0.00010688,2]
[352302164,1739032259514,-500.0,0.00010688,2]
[352302165,1739032259524,-304.37469861,0.00010688,2]
[352302166,1739032259534,-500.0,0.00010688,2]
[352302167,1739032259545,-500.0,0.00010688,2]
[352302168,1739032259555,-700.0,0.000107,3]
[352302169,1739032259564,-1000.0,0.000107,2]
[352302170,1739032259573,-1058.89192107,0.00010717,2]
[352302171,1739032259584,-775.08,0.00010718,2]
[352302172,1739032259594,-439.61,0.00010718,2]
[352302173,1739032259603,-1155.77154755,0.00010747,2]
[352302174,1739032259615,-55695.04521916,0.00010751,2]
[352302175,1739032259624,-162.88376973,0.00010773,2]
[352302176,1739032259633,-152.39471378,0.00010773,2]
[352302177,1739032259642,-543.30528378,0.0001078,2]
[352302178,1739032259652,-690190.23721524,0.0001078,2]
[352302179,1739032259661,-500.0,0.00010799,2]
[352302180,1739032259671,-500.0,0.00010799,2]
[352302181,1739032259681,-2335.0,0.000108,2]
[352302182,1739032259690,-700.0,0.000108,3]
[352302183,1739032259699,-213.0,0.0001081,2]
[352302184,1739032259708,-860.47,0.00010813,2]
[352302185,1739032259717,-796.29,0.00010813,2]
[352302186,1739032259726,-535.1,0.00010813,2]
[352302187,1739032259735,-684.28,0.00010813,2]
[352302188,1739032259744,-1691.91,0.00010813,2]
[352302189,1739032259753,-1572.96,0.00010813,2]
[352302190,1739032259762,-1278.79,0.00010813,2]
[352302191,1739032259771,-1126.04,0.00010813,2]
[352302192,1739032259781,-1172.7,0.00010813,2]
[352302193,1739032259791,-581.4,0.00010813,2]
[352302194,1739032259805,-500.0,0.00010813,2]
[352302195,1739032259814,-793.87,0.00010813,2]
[352302196,1739032259823,-1161.17,0.00010813,2]
[352302197,1739032259833,-1743.33,0.00010813,2]
[352302198,1739032259842,-1788.87,0.00010813,2]
[352302199,1739032259851,-650.47,0.00010813,2]
[352302200,1739032259861,-773.57,0.00010813,2]
[352302201,1739032259871,-500.0,0.00010813,2]
[352302202,1739032259882,-816.93,0.00010813,2]
[352302203,1739032259896,-2146.12,0.00010813,2]
[352302204,1739032259906,-502.64465619,0.00010813,2]
[352302205,1739032259915,-500.0,0.00010813,2]
[352302206,1739032259925,-500.0,0.00010813,2]
[352302207,1739032259934,-500.0,0.00010813,2]
[352302208,1739032259943,-959.01,0.00010813,2]
[352302209,1739032259952,-500.0,0.00010813,2]
[352302210,1739032259961,-842.46,0.00010813,2]
[352302211,1739032259971,-769.21,0.00010813,2]
[352302212,1739032259980,-500.0,0.00010813,2]
[352302213,1739032259989,-500.0,0.00010813,2]
[352302214,1739032259998,-517.87,0.00010813,2]
[352302215,1739032260008,-421.86141095,0.00010813,2]
[352302216,1739032260020,-500.0,0.00010813,2]
[352302217,1739032260030,-500.0,0.00010813,2]
[352302218,1739032260039,-500.0,0.00010813,2]
[352302219,1739032260049,-500.0,0.00010813,2]
[352302220,1739032260058,-500.0,0.00010813,2]
[352302221,1739032260067,-500.0,0.00010813,2]
[352302222,1739032260075,-500.0,0.00010813,2]
[352302223,1739032260085,-761.3,0.00010814,2]
[352302224,1739032260094,-1783.75,0.00010814,2]
[352302225,1739032260103,-1602.73,0.00010814,2]
[352302226,1739032260112,-825.22,0.00010814,2]
[352302227,1739032260121,-1270.45,0.00010814,2]
[352302228,1739032260130,-1628.959289,0.00010814,2]
[352302229,1739032260140,-713.15,0.00010814,2]
[352302230,1739032260149,-500.0,0.00010814,2]
[352302231,1739032260158,-651.39,0.00010814,2]
[352302232,1739032260167,-803.8,0.00010814,2]
[352302233,1739032260176,-549.87,0.00010814,2]
[352302234,1739032260185,-814.46,0.00010814,2]
[352302235,1739032260195,-1038.71,0.00010814,2]
[352302236,1739032260204,-1370.029514,0.00010814,2]
[352302237,1739032260213,-500.0,0.00010814,2]
[352302238,1739032260223,-727.77,0.00010814,2]
[352302239,1739032260232,-1337.02,0.00010814,2]
[352302240,1739032260241,-1078.67,0.00010814,2]
[352302241,1739032260250,-1338.19,0.00010814,2]
[352302242,1739032260259,-897.99,0.00010814,2]
[352302243,1739032260268,-780.21,0.00010814,2]
[352302244,1739032260277,-3300.87,0.00010814,2]
[352302245,1739032260287,-1371.3,0.00010814,2]
[352302246,1739032260295,-806.2,0.00010814,2]
[352302247,1739032260305,-1155.78,0.00010814,2]
[352302248,1739032260314,-1548.09,0.00010814,2]
[352302249,1739032260324,-500.0,0.00010814,2]
[352302250,1739032260333,-2198.17,0.00010814,2]
[352302251,1739032260342,-1148.28,0.00010814,2]
[352302252,1739032260352,-1438.12,0.00010814,2]
[352302253,1739032260360,-1443.49,0.00010814,2]
[352302254,1739032260372,-776.45,0.00010814,2]
[352302255,1739032260381,-445.23,0.00010814,2]
[352302256,1739032260390,-500.0,0.00010815,2]
[352302257,1739032260400,-930.87,0.00010815,2]
[352302258,1739032260409,-500.0,0.00010815,2]
[352302259,1739032260418,-691.29,0.00010815,2]
[352302260,1739032260427,-500.0,0.00010815,2]
[352302261,1739032260435,-500.0,0.00010815,2]
[352302262,1739032260445,-627.93,0.00010815,2]
[352302263,1739032260454,-500.0,0.00010815,2]
[352302264,1739032260464,-500.0,0.00010815,2]
[352302265,1739032260473,-500.0,0.00010815,2]
[352302266,1739032260482,-500.0,0.00010815,2]
[352302267,1739032260491,-519.79,0.00010815,2]
[352302268,1739032260500,-500.0,0.00010815,2]
[352302269,1739032260509,-500.0,0.00010815,2]
[352302270,1739032260519,-500.0,0.00010815,2]
[352302271,1739032260528,-500.0,0.00010815,2]
[352302272,1739032260537,-669.71,0.00010815,2]
[352302273,1739032260547,-500.0,0.00010815,2]
[352302274,1739032260555,-370.74565006,0.00010815,2]
[352302275,1739032260565,-500.0,0.00010815,2]
[352302276,1739032260575,-500.0,0.00010815,2]
[352302277,1739032260584,-500.0,0.00010815,2]
[352302278,1739032260593,-763.76,0.00010815,2]
[352302279,1739032260603,-500.0,0.00010815,2]
[352302280,1739032260611,-561.78,0.00010815,2]
[352302281,1739032260623,-500.0,0.00010815,2]
[352302282,1739032260632,-879.98,0.00010815,2]
[352302283,1739032260641,-500.0,0.00010815,2]
[352302284,1739032260651,-500.0,0.00010815,2]
[352302285,1739032260660,-752.67,0.00010815,2]
[352302286,1739032260669,-500.0,0.00010815,2]
[352302287,1739032260678,-500.0,0.00010815,2]
[352302288,1739032260687,-749.49,0.00010815,2]
[352302289,1739032260696,-500.0,0.00010815,2]
[352302290,1739032260706,-574.72,0.00010815,2]
[352302291,1739032260715,-500.0,0.00010815,2]
[352302292,1739032260724,-852.34,0.00010815,2]
[352302293,1739032260733,-619.2,0.00010815,2]
[352302294,1739032260742,-524.37,0.00010815,2]
[352302295,1739032260751,-603.48938919,0.00010815,2]
[352302296,1739032260760,-500.0,0.00010815,2]
[352302297,1739032260770,-681.91,0.00010815,2]
[352302298,1739032260778,-215.76,0.00010815,2]
[352302299,1739032260787,-647.0,0.00010815,2]
[352302300,1739032260797,-710.56,0.00010815,2]
[352302301,1739032260809,-441.97625777,0.00010815,2]
[352302302,1739032260818,-609.7,0.00010815,2]
[352302303,1739032260827,-500.0,0.00010815,2]
[352302304,1739032260836,-500.0,0.00010815,2]
[352302305,1739032260846,-605.68,0.00010815,2]
[352302306,1739032260857,-549.2,0.00010815,2]
[352302307,1739032260866,-500.0,0.00010815,2]
[352302308,1739032260875,-696.01,0.00010815,2]
[352302309,1739032260885,-500.0,0.00010815,2]
[352302310,1739032260894,-626.77,0.00010815,2]
[352302311,1739032260903,-230.32287198,0.00010815,2]
[352302312,1739032260913,-741.56,0.00010815,2]
[352302313,1739032260922,-500.0,0.00010815,2]
[352302314,1739032260932,-1599.9,0.00010815,2]
[352302315,1739032260941,-500.0,0.00010815,2]
[352302316,1739032260950,-699.1,0.00010815,2]
[352302317,1739032260960,-805.06,0.00010815,2]
[352302318,1739032260969,-500.0,0.00010815,2]
[352302319,1739032260979,-1718.5,0.00010815,2]
[352302320,1739032260989,-967.14,0.00010815,2]
[352302321,1739032260998,-1023.4,0.00010815,2]
[352302322,1739032261008,-1657.33,0.00010815,2]
[352302323,1739032261018,-712.21,0.00010815,2]
[352302324,1739032261027,-1320.76,0.00010815,2]
[352302325,1739032261037,-1905.97,0.00010815,2]
[352302326,1739032261046,-1224.71,0.00010815,2]
[352302327,1739032261056,-500.0,0.00010815,2]
[352302328,1739032261065,-647.26921746,0.00010815,2]
[352302329,1739032261075,-606.89,0.00010815,2]
[352302330,1739032261084,-500.0,0.00010815,2]
[352302331,1739032261094,-1330.25,0.00010815,2]
[352302332,1739032261103,-689.46,0.00010815,2]
[352302333,1739032261112,-839.2,0.00010815,2]
[352302334,1739032261123,-545.59,0.00010815,2]
[352302335,1739032261132,-1766.35,0.00010815,2]
[352302336,1739032261141,-500.0,0.00010815,2]
[352302337,1739032261150,-1494.3,0.00010815,2]
[352302338,1739032261159,-500.0,0.00010815,2]
[352302339,1739032261169,-876.23,0.00010815,2]
[352302340,1739032261178,-554.07,0.00010815,2]
[352302341,1739032261188,-879.59,0.00010815,2]
[352302342,1739032261198,-500.0,0.00010815,2]
[352302343,1739032261208,-749.63,0.00010815,2]
[352302344,1739032261217,-1094.24,0.00010815,2]
[352302345,1739032261227,-546.23,0.00010815,2]
[352302346,1739032261236,-500.0,0.00010815,2]
[352302347,1739032261247,-547.94,0.00010815,2]
[352302348,1739032261256,-1048.86,0.00010815,2]
[352302349,1739032261265,-566.32,0.00010815,2]
[352302350,1739032261275,-4888.33,0.00010815,2]
[352302351,1739032261285,-605.63,0.00010815,2]
[352302352,1739032261295,-847.0,0.00010815,2]
[352302353,1739032261305,-1004.92,0.00010815,2]
[352302354,1739032261315,-357.77800009,0.00010815,2]
[352302355,1739032261325,-500.0,0.00010815,2]
[352302356,1739032261334,-1493.5,0.00010815,2]
[352302357,1739032261344,-1003.45,0.00010815,2]
[352302358,1739032261354,-582.38,0.00010815,2]
[352302359,1739032261363,-1091.72,0.00010815,2]
[352302360,1739032261373,-500.0,0.00010815,2]
[352302361,1739032261382,-995.3,0.00010815,2]
[352302362,1739032261556,-500.0,0.00010815,2]
[352302363,1739032261590,-500.0,0.00010817,2]
[352302364,1739032261600,-500.0,0.00010817,2]
[352302365,1739032261610,-179.16,0.00010817,2]
[352302366,1739032261623,-541.91,0.00010817,2]
[352302367,1739032261633,-559.82,0.00010817,2]
[352302368,1739032261642,-209.1945975,0.00010817,2]
[352302369,1739032261652,-514.21,0.00010817,2]
[352302370,1739032261661,-500.0,0.00010817,2]
[352302371,1739032261671,-500.0,0.00010817,2]
[352302372,1739032261680,-3890.045,0.00010817,2]
[352302373,1739032261689,-172.762,0.00010817,2]
[352302374,1739032261698,-500.0,0.00010817,2]
[352302375,1739032261708,-500.0,0.00010817,2]
[352302376,1739032261718,-646.39,0.00010817,2]
[352302377,1739032261727,-500.0,0.00010817,2]
[352302378,1739032261737,-500.0,0.00010817,2]
[352302379,1739032261746,-500.0,0.00010817,2]
[352302380,1739032261755,-500.0,0.00010817,2]
[352302381,1739032261765,-1155.77154755,0.00010824,2]
[352302382,1739032261782,-500.0,0.00010825,2]
[352302383,1739032261794,-500.0,0.00010825,2]